bitfinex-derivatives/quotes_ETHF0:USTF0_20250428
["timestamp","ask_amount","ask_price","bid_price","bid_amount"]
[1745876596920,0.28895,1786.9,1786.8,8.65713]
[1745876597122,0.8178,1787.3,1787.2,1.11878]
[1745876597733,0.8178,1787.3,1787.2,3.62158]
[1745876598133,4.6198,1787.3,1787.2,3.62158]
[1745876598537,3.802,1787.3,1787.2,3.62158]
[1745876609547,4.6141,1787.3,1787.2,3.62158]
[1745876610853,4.6141,1787.3,1787.2,2.77768]
[1745876611144,2.79721,1787.1,1786.5,8.57732347]
[1745876611341,1.11913,1786.7,1786.5,8.57733347]
[1745876611544,1.7417,1786.6,1786.5,8.57733347]
[1745876612145,5.5437,1786.6,1786.5,8.57733347]
[1745876612355,5.5437,1786.6,1786.5,49.37733347]
[1745876614049,8.7515,1786.6,1786.5,49.37733347]
[1745876614452,8.7515,1786.6,1786.5,48.25812347]
[1745876614642,8.7515,1786.6,1786.5,49.37734347]
[1745876614844,10.5029,1786.6,1786.5,49.37734347]
[1745876615450,10.5029,1786.6,1786.5,8.57734347]
[1745876615752,10.5029,1786.6,1786.5,1.11922]
[1745876622160,7.2951,1786.6,1786.5,1.11922]
[1745876622345,10.5029,1786.6,1786.5,1.11922]
[1745876622757,7.2951,1786.6,1786.5,1.11922]
[1745876623145,10.5029,1786.6,1786.5,1.11922]
[1745876628957,7.2951,1786.6,1786.5,1.11922]
[1745876629162,10.5029,1786.6,1786.5,1.11922]
[1745876630358,7.2951,1786.6,1786.5,1.11922]
[1745876630563,10.5029,1786.6,1786.5,1.11922]
[1745876631363,10.5029,1786.6,1786.5,2.79132]
[1745876631563,10.5029,1786.6,1786.5,43.59132]
[1745876631960,9.6391,1786.6,1786.5,43.59132]
[1745876632557,9.6391,1786.6,1786.5,44.43282]
[1745876633859,7.8877,1786.6,1786.5,44.43282]
[1745876634154,7.8877,1786.6,1786.3,3.611]
[1745876634366,3.63085,1786.5,1786.3,1.11931]
[1745876634557,2.75793,1786.4,1786.2,1.11936]
[1745876634755,1.6386,1786.3,1786.2,2.73336]
[1745876635255,5.4406,1786.3,1786.2,2.73336]
[1745876640458,5.4406,1786.3,1786.2,1.11936]
[1745876641463,7.0098,1786.3,1786.2,2.86886]
[1745876642867,3.802,1786.3,1786.2,2.86886]
[1745876648172,3.802,1786.3,1786.2,1.11941]
[1745876648373,3.802,1786.3,1786.2,4.43681]
[1745876653279,8.6825,1786.5,1786.4,1.11929]
[1745876656578,8.6825,1786.5,1786.4,41.91929]
[1745876657882,8.6825,1786.5,1786.4,1.11929]
[1745876658071,9.80172,1786.5,1786.4,1.11929]
[1745876659080,8.6825,1786.5,1786.4,1.11929]
[1745876660378,7.0098,1786.5,1786.4,1.11929]
[1745876660571,3.25366334,1787.1,1786.4,1.11929]
[1745876660572,3.611,1787.4,1786.4,5.0]
[1745876660876,3.2078,1787.5,1787.2,1.11878]
[1745876661078,18.71281848,1787.8,1787.7,1.11847]
[1745876662178,22.51481848,1787.8,1787.7,1.11847]
[1745876663284,3.802,1787.8,1787.7,1.11847]
[1745876664484,3.802,1787.8,1787.6,2.75399]
[1745876664975,3.802,1787.8,1787.7,2.80527]
[1745876665885,3.802,1787.8,1787.7,1.6868]
[1745876667083,5.3908,1787.8,1787.7,1.6868]
[1745876667786,6.50921,1787.8,1787.5,5.52474]
[1745876668087,1.11849,1787.7,1787.5,5.3577]
[1745876668280,2.70736,1787.6,1787.4,3.2078]
[1745876668985,1.5888,1787.6,1787.4,4.32644]
[1745876669178,5.3908,1787.6,1787.4,4.32644]
[1745876672080,6.50939,1787.6,1787.4,3.2078]
[1745876672581,5.3908,1787.6,1787.4,3.2078]
[1745876672889,1.1186,1787.5,1787.4,3.2078]
[1745876673081,2.8369,1787.5,1787.4,3.2078]
[1745876673482,1.7183,1787.5,1787.4,3.2078]
[1745876673884,2.8369,1787.5,1787.4,3.2078]
[1745876674186,5.5203,1787.5,1787.4,3.2078]
[1745876676091,5.5203,1787.5,1787.3,1.1187]
[1745876676289,5.5203,1787.5,1787.4,1.11866]
[1745876676592,3.802,1787.5,1787.4,1.11866]
[1745876676891,3.802,1787.5,1787.4,2.78286]
[1745876683585,5.5065,1787.5,1787.4,2.78286]
[1745876686297,3.802,1787.5,1787.4,2.78286]
[1745876692012,5.5483,1787.5,1787.4,2.78286]
[1745876710423,3.802,1787.5,1787.4,2.78286]
[1745876711320,5.5319,1787.5,1787.4,2.78286]
[1745876711721,3.802,1787.5,1787.4,2.78286]
[1745876718123,5.435,1787.5,1787.4,2.78286]
[1745876720428,3.802,1787.5,1787.4,2.78286]
[1745876732832,6.3711,1787.5,1787.4,2.78286]
[1745876742435,6.3711,1787.5,1787.3,6.8158]
[1745876742630,1.7339,1787.4,1787.3,6.8158]
[1745876743029,1.7339,1787.4,1787.3,7.93452]
[1745876743232,6.65456,1787.4,1787.3,6.8158]
[1745876743432,5.5359,1787.4,1787.3,7.93452]
[1745876744030,3.802,1787.4,1787.3,7.93452]
[1745876744230,5.5359,1787.4,1787.3,7.93452]
[1745876744433,6.65456,1787.4,1787.3,7.93452]
[1745876744835,13.3326,1787.4,1786.9,10.66592347]
[1745876745036,2.4429,1787.3,1786.9,10.66592347]
[1745876745339,1.11891,1787.0,1786.9,11.78484347]
[1745876746041,1.98729,1787.1,1787.0,1.11891]
[1745876746632,1.11891,1787.0,1786.9,10.66592347]
[1745876746835,1.93591,1787.0,1786.9,7.45812347]
[1745876747235,13.94571,1787.0,1786.9,7.45812347]
[1745876747439,13.94571,1787.0,1786.7,1.1191]
[1745876747440,1.11908,1786.8,1786.7,1.1191]
[1745876747843,1.11908,1786.8,1786.6,1.11912]
[1745876748033,1.6696,1786.7,1786.6,1.11912]
[1745876749137,1.11916,1786.6,1786.5,7.45812347]
[1745876749439,4.32696,1786.6,1786.5,7.45812347]
[1745876749634,9.32696,1786.6,1786.5,7.45812347]
[1745876750040,1.11937,1786.3,1786.2,1.11939]
[1745876751236,4.92137,1786.3,1786.2,1.11939]
[1745876756047,1.11954,1786.0,1785.7,44.0078]
[1745876756344,1.11957,1786.0,1785.9,1.11958]
[1745876756545,4.3273,1786.1,1786.0,1.11954]
[1745876757145,8.1293,1786.1,1786.0,1.11954]
[1745876758851,4.9215,1786.1,1786.0,1.11954]
[1745876760655,3.2078,1787.0,1786.0,9.61]
[1745876760846,5.17539,1787.9,1787.6,1.11849]
[1745876761150,4.057,1787.9,1787.7,1.11845]
[1745876761345,1.11843,1787.8,1787.5,4.32634]
[1745876762049,1.11848,1787.7,1787.5,4.32634]
[1745876762748,4.92046,1787.8,1787.5,4.32634]
[1745876763353,3.802,1787.7,1787.5,4.32634]
[1745876763849,3.802,1787.7,1787.6,1.11853]
[1745876764051,3.802,1787.7,1787.5,4.32635]
[1745876764655,3.802,1787.7,1787.6,1.11853]
[1745876765152,3.802,1787.7,1787.5,4.32636]
[1745876765653,4.92047,1787.7,1787.5,4.32636]
[1745876766250,1.6734,1787.6,1787.5,4.32636]
[1745876767149,5.4754,1787.6,1787.5,4.32636]
[1745876767658,5.4754,1787.6,1787.5,1.11856]
[1745876767856,5.4754,1787.6,1787.5,4.32636]
[1745876774555,6.59393,1787.6,1787.5,3.2078]
[1745876775461,1.11866,1787.4,1787.3,3.2078]
[1745876775661,1.11876,1787.3,1787.1,4.3266]
[1745876775862,1.5969,1787.3,1787.1,4.3266]
[1745876776159,5.3989,1787.3,1787.1,4.3266]
[1745876776361,1.11878,1787.2,1787.1,4.3266]
[1745876776660,1.5969,1787.2,1787.1,4.3266]
[1745876776861,2.71568,1787.2,1787.1,4.3266]
[1745876777266,6.51768,1787.2,1787.1,4.3266]
[1745876777558,6.51768,1787.2,1787.1,3.2078]
[1745876777763,11.51768,1787.2,1787.1,3.2078]
[1745876778151,13.19593,1787.2,1786.8,1.11902]
[1745876778356,1.11897,1786.9,1786.8,1.11902]
[1745876779263,4.92097,1786.9,1786.8,1.11902]
[1745876779562,6.52627,1786.9,1786.8,1.11902]
[1745876786173,1.11903,1786.8,1786.7,4.32686]
[1745876786365,2.87083,1786.8,1786.7,4.32686]
[1745876787072,2.87083,1786.8,1786.7,3.2078]
[1745876787275,6.67283,1786.8,1786.7,3.2078]
[1745876787973,6.67283,1786.8,1786.7,4.3269]
[1745876788168,6.67283,1786.8,1786.7,3.2078]
[1745876788680,6.67283,1786.8,1786.7,4.3269]
[1745876789476,6.67283,1786.8,1786.7,1.1191]
[1745876799886,1.11915,1786.7,1786.6,1.11914]
[1745876800083,2.83185,1786.7,1786.6,1.11914]
[1745876800382,6.63385,1786.7,1786.6,1.11914]
[1745876803982,6.63385,1786.7,1786.6,2.77124]
[1745876804887,6.63385,1786.7,1786.6,1.11914]
[1745876808390,1.11916,1786.6,1786.5,4.32697]
[1745876808592,4.92114,1786.7,1786.6,1.11916]
[1745876809089,1.11914,1786.7,1786.6,1.11916]
[1745876810088,4.92114,1786.7,1786.6,1.11916]
[1745876812686,1.11916,1786.6,1786.5,4.32699]
[1745876813087,4.92116,1786.6,1786.5,4.32699]
[1745876813392,4.92116,1786.6,1786.5,1.11919]
[1745876813785,1.11922,1786.5,1786.4,1.11924]
[1745876813986,4.92121,1786.6,1786.4,1.11924]
[1745876815096,1.11922,1786.5,1786.4,1.11924]
[1745876815289,4.92122,1786.6,1786.4,1.11924]
[1745876815590,4.92121,1786.6,1786.4,1.11924]
[1745876815895,1.11922,1786.5,1786.4,1.11924]
[1745876816395,3.802,1786.5,1786.4,1.11924]
[1745876819899,3.802,1786.5,1786.4,4.32704]
[1745876823798,3.802,1786.5,1786.4,9.32704]
[1745876823999,5.884,1787.1,1787.0,1.11891]
[1745876824207,3.802,1787.1,1787.0,1.11891]
[1745876824606,3.802,1787.1,1787.0,4.32671]
[1745876824817,3.802,1787.1,1787.0,5.93521]
[1745876825004,3.802,1787.1,1787.0,10.93521]
[1745876825300,7.98627,1787.8,1787.5,1.11855]
[1745876825610,4.32627,1787.8,1787.6,1.11853]
[1745876826307,1.6769,1787.7,1787.6,1.11853]
[1745876827112,5.4789,1787.7,1787.6,1.11853]
[1745876829309,6.59737,1787.7,1787.6,1.11853]
[1745876831813,6.59737,1787.7,1787.5,2.72706]
[1745876832013,1.6503,1787.6,1787.5,2.72706]
[1745876833114,6.57083,1787.6,1787.5,2.72706]
[1745876839931,6.57083,1787.6,1787.4,44.0078]
[1745876840129,1.642,1787.5,1787.4,45.12646]
[1745876840431,2.7606,1787.5,1787.4,45.12646]
[1745876840633,2.7606,1787.5,1787.4,4.32646]
[1745876841230,6.5626,1787.5,1787.4,4.32646]
[1745876841736,6.5626,1787.5,1787.4,3.2078]
[1745876842042,1.11872,1787.3,1787.2,3.2078]
[1745876842627,2.82332,1787.3,1787.2,3.2078]
[1745876843123,1.11885,1787.1,1787.0,6.01337]
[1745876844126,4.92085,1787.1,1787.0,4.32667]
[1745876844828,4.92085,1787.1,1787.0,1.11887]
[1745876845034,4.92085,1787.1,1787.0,4.32667]
[1745876847937,4.92085,1787.1,1787.0,3.2078]
[1745876849135,5.76825,1787.1,1787.0,3.2078]
[1745876854943,1.11891,1787.0,1786.9,1.11897]
[1745876855136,3.65121,1787.0,1786.9,4.32677]
[1745876856243,7.45321,1787.0,1786.9,4.32677]
[1745876858640,6.3343,1787.0,1786.9,4.32677]
[1745876858837,7.45321,1787.0,1786.9,5.16357]
[1745876859444,6.3343,1787.0,1786.9,5.16357]
[1745876860345,7.45321,1787.0,1786.9,5.16357]
[1745876864049,7.45321,1787.0,1786.9,1.95577]
[1745876864348,7.45321,1787.0,1786.9,5.16357]
[1745876867151,7.45321,1787.0,1786.9,1.95577]
[1745876867352,7.45321,1787.0,1786.9,5.16357]
[1745876871552,7.45321,1787.0,1786.9,1.95577]
[1745876871853,7.45321,1787.0,1786.9,5.16357]
[1745876872949,7.45321,1787.0,1786.9,4.32677]
[1745876873545,7.45321,1787.0,1786.9,3.2078]
[1745876875557,7.45321,1787.0,1786.8,1.11899]
[1745876875752,1.6591,1786.9,1786.8,1.11899]
[1745876876158,5.4611,1786.9,1786.8,1.11899]
[1745876881358,5.4611,1786.9,1786.8,2.81459]
[1745876884061,5.4611,1786.9,1786.8,6.02239]
[1745876886862,5.4611,1786.9,1786.8,2.81459]
[1745876887360,5.4611,1786.9,1786.8,6.02239]
[1745876890564,6.58007,1786.9,1786.8,6.02239]
[1745876890758,5.4611,1786.9,1786.8,6.02239]
[1745876901167,6.58007,1786.9,1786.8,6.02239]
[1745876903770,6.58007,1786.9,1786.8,2.81459]
[1745876903971,6.58007,1786.9,1786.8,6.02239]
[1745876906673,5.4611,1786.9,1786.8,6.02239]
[1745876912475,3.802,1786.9,1786.8,6.02239]
[1745876912677,3.802,1786.9,1786.8,11.02239]
[1745876914180,0.8775,1787.3,1787.2,1.11878]
[1745876914782,2.7894,1787.4,1787.3,1.11872]
[1745876915179,6.5914,1787.4,1787.3,2.71082]
[1745876915584,5.4727,1787.4,1787.3,2.71082]
[1745876915881,3.802,1787.4,1787.3,2.71082]
[1745876916177,3.802,1787.4,1787.3,3.54162]
[1745876919183,3.802,1787.4,1787.3,7.15362]
[1745876919477,3.802,1787.4,1787.3,10.36142]
[1745876925485,3.802,1787.4,1787.3,9.53062]
[1745876931690,3.802,1787.4,1787.3,7.93852]
[1745876935495,3.802,1787.4,1787.3,4.32652]
[1745876935683,5.5225,1787.4,1787.3,7.93652]
[1745876939195,5.5225,1787.4,1787.3,4.32652]
[1745876940994,6.37,1787.4,1787.3,4.32652]
[1745876942098,7.48866,1787.4,1787.3,4.32652]
[1745876945801,7.48866,1787.4,1787.3,1.11872]
[1745876945999,7.48866,1787.4,1787.3,4.32652]
[1745876948101,6.37,1787.4,1787.3,4.32652]
[1745876967214,6.37,1787.4,1787.3,5.12842]
[1745876968125,6.37,1787.4,1787.3,1.92062]
[1745876968423,3.802,1787.4,1787.3,5.12842]
[1745876968617,4.92066,1787.4,1787.3,3.2078]
[1745876968819,1.11872,1787.3,1787.1,4.32661]
[1745876969024,4.32822,1787.3,1787.1,4.32661]
[1745876969217,8.13022,1787.3,1787.1,4.32661]
[1745876969419,1.6025,1787.2,1787.1,4.32661]
[1745876971229,5.4045,1787.2,1787.1,4.32661]
[1745876982131,3.802,1787.4,1787.3,1.11872]
[1745876982325,3.802,1787.4,1787.3,4.32652]
[1745876982932,3.802,1787.4,1787.3,6.01432]
[1745876987233,1.5856,1787.5,1787.4,1.11866]
[1745876988029,1.5856,1787.5,1787.4,2.78896]
[1745876988230,5.3876,1787.5,1787.4,2.78896]
[1745876991339,3.802,1787.5,1787.4,2.78896]
[1745876991536,3.802,1787.5,1787.4,7.78896]
[1745876992140,3.3446,1787.9,1787.8,1.11841]
[1745876992730,3.3446,1787.9,1787.8,1.97371]
[1745876993438,7.1466,1787.9,1787.8,3.67991]
[1745876994038,7.1466,1787.9,1787.8,44.47991]
[1745876995739,6.2994,1787.9,1787.8,44.47991]
[1745876996131,7.41775,1787.9,1787.8,44.47991]
[1745876997929,7.41775,1787.9,1787.8,42.77371]
[1745876998440,7.41775,1787.9,1787.8,41.91841]
[1745876999941,7.41775,1787.9,1787.8,1.11841]
[1745877004649,1.11841,1787.8,1787.7,45.12622]
[1745877004862,2.83591,1787.8,1787.7,45.12622]
[1745877005250,6.63791,1787.8,1787.7,45.12622]
[1745877011451,6.63791,1787.8,1787.7,44.0078]
[1745877013057,6.63791,1787.8,1787.7,41.91847]
[1745877013255,6.63791,1787.8,1787.7,45.12627]
[1745877013757,6.63791,1787.8,1787.7,44.0078]
[1745877013951,6.63791,1787.8,1787.7,45.12627]
[1745877017561,6.63791,1787.8,1787.7,4.32627]
[1745877017960,6.63791,1787.8,1787.7,1.11847]
[1745877018262,6.63791,1787.8,1787.7,4.32627]
[1745877023664,5.5195,1787.8,1787.7,4.32627]
[1745877024158,6.63791,1787.8,1787.7,4.32627]
[1745877028370,3.802,1787.8,1787.7,4.32627]
[1745877028959,3.802,1787.8,1787.7,5.95337]
[1745877030173,2.4808,1787.9,1787.8,1.11841]
[1745877030469,2.4808,1787.9,1787.8,3.56021]
[1745877030770,3.59915,1787.9,1787.8,3.56021]
[1745877031174,7.40115,1787.9,1787.8,3.56021]
[1745877032572,7.40115,1787.9,1787.8,1.11841]
[1745877036669,4.679,1787.9,1787.8,1.11841]
[1745877036872,3.802,1787.9,1787.8,2.79191]
[1745877041068,5.5326,1787.9,1787.8,2.79191]
[1745877051999,20.58410033,1789.4,1787.9,3.2078]
[1745877052194,18.96975033,1789.4,1789.3,4.32527]
[1745877052491,14.36046033,1789.4,1789.3,48.73227]
[1745877052795,12.59866033,1789.4,1789.3,53.73227]
[1745877052997,10.79133033,1789.4,1789.3,53.73227]
[1745877053296,4.61558033,1789.4,1789.3,54.19552092]
[1745877053499,1.85966033,1789.4,1789.3,54.52555541]
[1745877053685,1.85966033,1789.4,1789.3,53.05963517]
[1745877053892,1.85966033,1789.4,1789.3,51.20335541]
[1745877054091,2.97707033,1789.4,1789.3,3.2078]
[1745877054294,6.77907033,1789.4,1789.3,3.2078]
[1745877055198,8.24156033,1789.4,1789.3,4.32527]
[1745877056390,8.24156033,1789.4,1789.3,3.2078]
[1745877057205,6.3819,1789.4,1789.3,3.2078]
[1745877060703,7.49931,1789.4,1789.3,3.2078]
[1745877062405,6.3819,1789.4,1789.3,3.2078]
[1745877062602,4.32453,1790.5,1790.3,1.11683]
[1745877062905,1.11668,1790.6,1790.4,3.2078]
[1745877063095,3.802,1790.5,1790.4,4.32458]
[1745877063296,4.7564,1790.5,1790.4,4.32458]
[1745877063703,3.802,1790.5,1790.4,4.32458]
[1745877064001,3.802,1790.5,1790.4,3.2078]
[1745877064303,3.802,1790.5,1790.4,4.32458]
[1745877065191,3.802,1790.5,1790.4,5.98138]
[1745877065598,3.802,1790.5,1790.4,3.2078]
[1745877068107,4.91872,1790.5,1790.4,3.2078]
[1745877068305,1.11691,1790.2,1790.1,40.8]
[1745877068499,1.11691,1790.2,1790.1,3.2078]
[1745877068901,6.11691,1790.2,1790.1,3.2078]
[1745877069100,14.80218,1790.2,1789.6,3.2078]
[1745877069300,1.11722,1789.7,1789.6,3.2078]
[1745877069506,1.11722,1789.7,1789.6,44.0078]
[1745877070201,4.91922,1789.7,1789.6,44.0078]
[1745877070607,4.91922,1789.7,1789.4,5.4963]
[1745877070608,1.11729,1789.6,1789.4,5.4963]
[1745877070803,1.11729,1789.6,1789.4,6.6137]
[1745877071206,3.802,1789.6,1789.5,40.8]
[1745877071702,3.802,1789.6,1789.5,41.91735]
[1745877072009,4.32487,1790.0,1789.7,1.11719]
[1745877072209,8.12687,1790.0,1789.8,1.7297]
[1745877072606,1.1171,1789.9,1789.8,1.7297]
[1745877072911,8.12688,1790.0,1789.8,1.7297]
[1745877073302,1.1171,1789.9,1789.8,1.7297]
[1745877074014,1.1171,1789.9,1789.7,1.11719]
[1745877074211,3.802,1789.9,1789.6,1.7297]
[1745877074413,1.11716,1789.8,1789.6,2.84693]
[1745877074814,1.11716,1789.8,1789.7,1.11722]
[1745877075012,4.91915,1789.9,1789.7,1.11722]
[1745877075212,3.802,1789.8,1789.7,1.11722]
[1745877075915,3.802,1789.8,1789.6,2.84693]
[1745877076213,4.91916,1789.8,1789.6,2.84693]
[1745877076405,1.7485,1789.7,1789.6,2.84693]
[1745877077106,5.5505,1789.7,1789.6,2.84693]
[1745877077305,3.802,1789.7,1789.6,2.84693]
[1745877077815,3.802,1789.7,1789.6,3.63494439]
[1745877078010,2.5059,1789.7,1789.6,8.63494439]
[1745877078308,2.5059,1789.7,1789.6,7.84693]
[1745877078514,2.5059,1789.7,1789.6,8.63562151]
[1745877080116,0.9549,1789.8,1789.7,1.11722]
[1745877080320,0.9549,1789.8,1789.7,3.61590548]
[1745877080519,2.79891,1789.9,1789.7,2.49868548]
[1745877080720,2.79891,1789.9,1789.8,0.79118548]
[1745877080922,3.75381,1789.9,1789.8,1.90834548]
[1745877081123,7.55581,1789.9,1789.8,0.79118548]
[1745877081417,6.60091,1789.9,1789.8,0.79118548]
[1745877082021,6.60091,1789.9,1789.8,0.79294946]
[1745877084022,6.60091,1789.9,1789.8,0.79331962]
[1745877085224,7.43511,1789.9,1789.8,0.79331962]
[1745877085927,1.11719,1789.8,1789.6,2.79274]
[1745877086129,1.6497,1789.7,1789.6,2.79274]
[1745877086320,1.6497,1789.7,1789.6,3.58643619]
[1745877086525,2.76692,1789.7,1789.6,3.58643619]
[1745877086731,1.6497,1789.7,1789.6,3.58643619]
[1745877087227,5.4517,1789.7,1789.6,3.58643619]
[1745877087726,5.4517,1789.7,1789.6,3.58674467]
[1745877089626,5.4517,1789.7,1789.6,2.79274]
[1745877089828,5.4517,1789.7,1789.6,3.58728793]
[1745877091529,5.4517,1789.7,1789.6,2.79274]
[1745877091723,5.4517,1789.7,1789.6,3.58745229]
[1745877093430,5.4517,1789.7,1789.6,3.58825711]
[1745877095427,5.4517,1789.7,1789.6,1.91311582]
[1745877099134,5.4517,1789.7,1789.6,1.9093157]
[1745877101033,5.4517,1789.7,1789.6,1.90947623]
[1745877101223,5.4517,1789.7,1789.6,1.90947223]
[1745877101830,3.802,1789.7,1789.6,1.90947223]
[1745877102130,3.8761,1790.0,1789.6,3.28303223]
[1745877102429,1.6571,1790.2,1790.1,1.11697]
[1745877102631,1.6571,1790.2,1790.1,1.90920223]
[1745877103035,1.6571,1790.2,1790.1,1.89927259]
[1745877103237,5.4591,1790.2,1790.1,1.89927259]
[1745877104536,5.4591,1790.2,1790.1,1.89900918]
[1745877104835,5.4591,1790.2,1790.1,1.89902254]
[1745877105837,5.4591,1790.2,1790.1,5.10682254]
[1745877106637,5.4591,1790.2,1790.1,4.32477]
[1745877106934,5.4591,1790.2,1790.1,5.10625858]
[1745877108539,5.4591,1790.2,1790.1,5.10603032]
[1745877109640,3.802,1790.2,1790.1,5.10603032]
[1745877109937,3.802,1790.2,1790.1,6.73333032]
[1745877110337,3.802,1790.2,1790.1,6.7329652]
[1745877112033,3.802,1790.2,1790.1,11.7329652]
[1745877112241,3.802,1790.2,1790.1,6.7329652]
[1745877114342,3.802,1790.2,1790.1,6.73163403]
[1745877115140,3.802,1790.3,1790.2,1.11691]
[1745877115333,3.802,1790.3,1790.2,7.51407403]
[1745877115941,3.802,1790.3,1790.2,7.50690887]
[1745877116139,3.802,1790.3,1790.2,7.50663367]
[1745877117341,3.802,1790.3,1790.2,5.79603367]
[1745877118136,3.802,1790.3,1790.2,8.20812017]
[1745877118443,1.6919,1790.7,1790.6,1.11666]
[1745877118640,1.6919,1790.7,1790.6,1.89563533]
[1745877118943,20.2033476,1792.3,1791.5,3.2078]
[1745877119242,20.2033476,1792.3,1792.2,4.32346]
[1745877119439,20.2033476,1792.3,1792.2,44.0078]
[1745877119638,25.2033476,1792.3,1792.2,44.78155755]
[1745877119838,20.2033476,1792.7,1792.2,44.78154194]
[1745877120031,1.11548,1792.5,1792.4,3.2078]
[1745877120341,2.78901,1792.3,1791.8,3.2078]
[1745877120537,2.78901,1792.3,1791.7,40.8]
[1745877120538,1.11594,1791.8,1791.7,40.8]
[1745877121043,5.0,1791.8,1791.6,3.2078]
[1745877121240,5.0,1791.8,1791.5,3.2078]
[1745877121241,1.11604,1791.6,1791.5,3.2078]
[1745877121442,0.8162,1791.7,1791.5,44.0078]
[1745877121632,0.8162,1791.7,1791.6,1.11604]
[1745877121830,0.8162,1791.7,1791.5,45.12387]
[1745877122245,0.8162,1791.7,1791.6,1.11604]
[1745877122246,4.6182,1791.7,1791.6,1.11604]
[1745877122945,3.802,1791.7,1791.6,1.11604]
[1745877123246,1.7424,1791.7,1791.6,3.4948482]
[1745877123640,0.8698,1792.0,1791.9,1.11585]
[1745877123839,0.8698,1792.0,1791.9,4.32365]
[1745877124143,0.8154,1792.2,1791.9,4.32363]
[1745877124343,0.8698,1792.1,1792.0,1.11579]
[1745877124547,0.8154,1792.2,1792.0,1.11579]
[1745877124842,0.8154,1792.2,1792.0,2.73809]
[1745877125049,0.8154,1792.2,1792.1,4.32353]
[1745877125234,4.6174,1792.2,1792.1,4.32353]
[1745877125439,3.802,1792.2,1792.1,4.32353]
[1745877125938,3.802,1792.2,1792.1,5.94583]
[1745877126941,3.802,1792.2,1792.1,4.32353]
[1745877127339,3.802,1792.2,1792.1,3.2078]
[1745877127547,4.6089,1792.2,1792.1,3.2078]
[1745877129649,1.11579,1792.0,1791.9,3.2078]
[1745877129840,1.11588,1791.9,1791.6,3.2078]
[1745877130142,7.0098,1791.9,1791.5,40.8]
[1745877130445,1.11605,1791.6,1791.3,4.057]
[1745877130644,1.6703,1791.5,1791.4,3.2078]
[1745877130839,1.6703,1791.5,1791.1,0.8012]
[1745877130840,1.6703,1791.5,1791.2,3.2078]
[1745877131046,1.11619,1791.4,1791.2,3.2078]
[1745877131744,6.58845,1791.5,1791.2,4.32408]
[1745877131941,6.58845,1791.5,1791.2,3.2078]
[1745877132141,1.11616,1791.4,1791.2,3.2078]
[1745877132647,6.58844,1791.5,1791.2,3.2078]
[1745877132844,1.11616,1791.4,1791.2,3.2078]
[1745877133148,5.4723,1791.5,1791.2,3.2078]
[1745877133446,4.6468,1791.5,1791.4,1.11616]
[1745877133944,3.802,1791.5,1791.4,1.11616]
[1745877134144,0.8509,1792.8,1792.2,1.11566]
[1745877134345,4.8955,1793.6,1792.6,2.78854]
[1745877134644,1.11492,1793.4,1793.0,1.11513]
[1745877134843,1.11501,1793.3,1792.9,1.11519]
[1745877135147,1.11505,1793.2,1792.9,1.11519]
[1745877135344,1.11505,1793.2,1792.8,3.2078]
[1745877135644,1.11505,1793.2,1792.9,1.11521]
[1745877136047,3.802,1793.3,1792.9,1.11521]
[1745877136244,4.91704,1793.2,1792.9,1.11521]
[1745877136446,5.5473,1793.2,1792.9,1.11521]
[1745877136744,6.66234,1793.2,1792.9,1.11521]
[1745877136941,6.66234,1793.2,1792.8,4.32305]
[1745877137134,6.66234,1793.2,1792.9,1.11522]
[1745877137343,0.7964,1793.1,1792.9,1.11522]
[1745877137539,1.7453,1793.0,1792.9,1.11522]
[1745877138046,5.5473,1793.0,1792.9,1.11522]
[1745877138347,5.5473,1793.0,1792.8,4.32307]
[1745877138844,5.5473,1793.0,1792.8,3.2078]
[1745877139141,13.7551,1793.0,1792.5,3.2078]
[1745877139348,1.11537,1792.7,1792.5,3.2078]
[1745877139548,1.6343,1792.6,1792.5,3.2078]
[1745877139748,1.6343,1792.6,1792.5,44.0078]
[1745877140048,1.6343,1792.6,1792.0,1.11577]
[1745877140049,1.11564,1792.3,1792.0,1.11577]
[1745877140241,1.6343,1792.2,1791.9,4.32361]
[1745877140442,1.6343,1792.2,1792.0,40.8]
[1745877140642,3.58021,1792.2,1792.0,40.8]
[1745877141042,3.5802,1792.2,1792.0,40.8]
[1745877141243,7.3822,1792.2,1792.0,40.8]
[1745877141446,6.2665,1792.2,1792.0,41.91575]
[1745877141651,6.2665,1792.2,1792.1,1.11573]
[1745877141842,5.4363,1792.2,1792.1,1.11573]
[1745877142238,3.802,1792.2,1792.1,3.2078]
[1745877142446,4.91766,1792.2,1792.0,40.8]
[1745877142648,1.7102,1792.1,1792.0,40.8]
[1745877143150,5.5122,1792.1,1792.0,40.8]
[1745877146153,5.5122,1792.1,1792.0,41.91579]
[1745877146544,5.5122,1792.1,1792.0,40.8]
[1745877146743,5.5122,1792.1,1792.0,41.91579]
[1745877147051,5.5122,1792.1,1792.0,40.8]
[1745877147347,3.2078,1794.8,1792.9,3.2078]
[1745877147552,3.2078,1794.8,1794.3,3.2078]
[1745877147756,0.8289,1794.7,1794.3,3.2078]
[1745877147950,3.2078,1794.8,1794.3,3.2078]
[1745877148151,3.802,1794.7,1794.3,3.2078]
[1745877148452,1.11422,1794.6,1794.3,3.2078]
[1745877148751,1.11421,1794.6,1794.3,3.2078]